[Event "Titled Tuesday Blitz July 27 2021"]
[White "Krivonosov, Oleg"]
[Black "Obregon, Andres Carlos"]
[WhiteFideId "11600349"]
[BlackFideId "111724"]
[WhiteElo "2469"]
[BlackElo "2572"]
[Result "0-1"]
[Round "11"]
[TimeControl "180+1"]
[Date "2021.07.27"]
[WhiteClock "0:00:08"]
[BlackClock "0:00:17"]

1. Nf3 {[%clk 0:03:00]}  Nf6 {[%clk 0:02:59]} 2. c4 {[%clk 0:02:59]}  g6 {[%clk 0:02:59]} 3. Nc3 {[%clk 0:02:59]}  d6 {[%clk 0:02:59]} 4. d4 {[%clk 0:02:56]}  Bg7 {[%clk 0:02:59]} 5. e4 {[%clk 0:02:55]}  Nbd7 {[%clk 0:02:57]} 6. Be2 {[%clk 0:02:55]}  e5 {[%clk 0:02:56]} 7. O-O {[%clk 0:02:54]}  O-O {[%clk 0:02:56]} 8. Re1 {[%clk 0:02:54]}  c6 {[%clk 0:02:55]} 9. Bf1 {[%clk 0:02:52]}  Re8 {[%clk 0:02:53]} 10. d5 {[%clk 0:02:52]}  cxd5 {[%clk 0:02:51]} 11. cxd5 {[%clk 0:02:36]}  Nc5 {[%clk 0:02:42]} 12. b4 {[%clk 0:02:32]}  Na6 {[%clk 0:02:11]} 13. a3 {[%clk 0:02:31]}  Bd7 {[%clk 0:02:11]} 14. h3 {[%clk 0:02:21]}  Rc8 {[%clk 0:02:08]} 15. Bd2 {[%clk 0:02:19]}  Nc7 {[%clk 0:01:58]} 16. Rc1 {[%clk 0:02:14]}  Na8 {[%clk 0:01:57]} 17. Qb3 {[%clk 0:02:10]}  Nb6 {[%clk 0:01:55]} 18. a4 {[%clk 0:02:08]}  a6 {[%clk 0:01:49]} 19. a5 {[%clk 0:02:06]}  Na8 {[%clk 0:01:50]} 20. Na4 {[%clk 0:01:58]}  Rxc1 {[%clk 0:01:44]} 21. Bxc1 {[%clk 0:01:58]}  Qc7 {[%clk 0:01:26]} 22. Bd2 {[%clk 0:01:54]}  Rc8 {[%clk 0:01:26]} 23. Rc1 {[%clk 0:01:40]}  Qd8 {[%clk 0:01:25]} 24. Rxc8 {[%clk 0:01:39]}  Qxc8 {[%clk 0:01:25]} 25. Bd3 {[%clk 0:01:35]}  Qe8 {[%clk 0:01:22]} 26. Nc3 {[%clk 0:01:32]}  Nc7 {[%clk 0:01:22]} 27. Be3 {[%clk 0:01:29]}  Nb5 {[%clk 0:01:21]} 28. Nxb5 {[%clk 0:01:29]}  Bxb5 {[%clk 0:01:21]} 29. Nd2 {[%clk 0:01:24]}  Qc8 {[%clk 0:01:10]} 30. Qc2 {[%clk 0:01:07]}  Qxc2 {[%clk 0:01:06]} 31. Bxc2 {[%clk 0:01:08]}  Nh5 {[%clk 0:01:03]} 32. g3 {[%clk 0:01:06]}  Bf6 {[%clk 0:00:58]} 33. Kg2 {[%clk 0:01:03]}  Be7 {[%clk 0:00:57]} 34. f3 {[%clk 0:00:59]}  Ng7 {[%clk 0:00:56]} 35. Kf2 {[%clk 0:00:56]}  f5 {[%clk 0:00:55]} 36. g4 {[%clk 0:00:54]}  f4 {[%clk 0:00:50]} 37. Bb6 {[%clk 0:00:51]}  Kf7 {[%clk 0:00:50]} 38. Bb3 {[%clk 0:00:37]}  Ke8 {[%clk 0:00:50]} 39. Nc4 {[%clk 0:00:35]}  Bh4+ {[%clk 0:00:47]} 40. Ke2 {[%clk 0:00:34]}  Kd7 {[%clk 0:00:45]} 41. Bf2 {[%clk 0:00:33]}  Bd8 {[%clk 0:00:39]} 42. Kd2 {[%clk 0:00:29]}  Ne8 {[%clk 0:00:39]} 43. Nb6+ {[%clk 0:00:27]}  Kc7 {[%clk 0:00:37]} 44. Nc4 {[%clk 0:00:27]}  Be7 {[%clk 0:00:36]} 45. Nb6 {[%clk 0:00:26]}  h5 {[%clk 0:00:35]} 46. Nc4 {[%clk 0:00:25]}  Nf6 {[%clk 0:00:32]} 47. Bb6+ {[%clk 0:00:21]}  Kd7 {[%clk 0:00:31]} 48. Bf2 {[%clk 0:00:22]}  Nh7 {[%clk 0:00:30]} 49. gxh5 {[%clk 0:00:19]}  gxh5 {[%clk 0:00:30]} 50. h4 {[%clk 0:00:19]}  Nf8 {[%clk 0:00:30]} 51. Nb6+ {[%clk 0:00:16]}  Kd8 {[%clk 0:00:30]} 52. Bc4 {[%clk 0:00:15]}  Be8 {[%clk 0:00:28]} 53. Bf1 {[%clk 0:00:13]}  Ng6 {[%clk 0:00:28]} 54. Nc4 {[%clk 0:00:13]}  Kc7 {[%clk 0:00:27]} 55. Bb6+ {[%clk 0:00:11]}  Kb8 {[%clk 0:00:27]} 56. Bf2 {[%clk 0:00:12]}  Bb5 {[%clk 0:00:26]} 57. Ke1 {[%clk 0:00:09]}  Kc7 {[%clk 0:00:25]} 58. Bb6+ {[%clk 0:00:09]}  Kb8 {[%clk 0:00:24]} 59. Bf2 {[%clk 0:00:09]}  Nxh4 {[%clk 0:00:21]} 60. Bxh4 {[%clk 0:00:08]}  Bxh4+ {[%clk 0:00:20]} 61. Kd2 {[%clk 0:00:09]}  Kc7 {[%clk 0:00:20]} 62. Kd3 {[%clk 0:00:09]}  Bf2 {[%clk 0:00:18]} 63. Bh3 {[%clk 0:00:10]}  h4 {[%clk 0:00:17]} 64. Bf5 {[%clk 0:00:08]}  Be1 {[%clk 0:00:17]} 0-1


[Site "https://www.chess.com"]

[Event "Titled Tuesday Blitz July 27 2021"]
[White "Kuruppu, Supun Dasantha"]
[Black "Hamley, Ryan"]
[WhiteFideId "9902805"]
[BlackFideId "30959497"]
[WhiteElo "1704"]
[BlackElo "2418"]
[Result "0-1"]
[Round "11"]
[TimeControl "180+1"]
[Date "2021.07.27"]
[WhiteClock "0:00:11"]
[BlackClock "0:00:24"]

1. d4 {[%clk 0:03:00]}  Nf6 {[%clk 0:02:58]} 2. Nf3 {[%clk 0:03:01]}  e6 {[%clk 0:02:57]} 3. Bf4 {[%clk 0:03:02]}  d5 {[%clk 0:02:58]} 4. Nbd2 {[%clk 0:03:01]}  Bd6 {[%clk 0:02:59]} 5. Bg3 {[%clk 0:03:00]}  c5 {[%clk 0:02:58]} 6. e3 {[%clk 0:03:00]}  cxd4 {[%clk 0:02:59]} 7. exd4 {[%clk 0:03:01]}  Nc6 {[%clk 0:02:58]} 8. c3 {[%clk 0:03:02]}  O-O {[%clk 0:02:57]} 9. Bd3 {[%clk 0:03:02]}  b6 {[%clk 0:02:58]} 10. O-O {[%clk 0:02:59]}  Bb7 {[%clk 0:02:58]} 11. Re1 {[%clk 0:02:59]}  Rc8 {[%clk 0:02:49]} 12. Ne5 {[%clk 0:02:59]}  Qc7 {[%clk 0:02:47]} 13. Ng4 {[%clk 0:02:55]}  Nd7 {[%clk 0:02:42]} 14. Qf3 {[%clk 0:02:45]}  Bxg3 {[%clk 0:02:37]} 15. hxg3 {[%clk 0:02:35]}  e5 {[%clk 0:02:37]} 16. Qxd5 {[%clk 0:02:23]}  Nxd4 {[%clk 0:02:22]} 17. Qc4 {[%clk 0:02:08]}  Qd6 {[%clk 0:02:03]} 18. Qa4 {[%clk 0:02:00]}  Nc5 {[%clk 0:02:01]} 19. Qc4 {[%clk 0:01:19]}  Nxd3 {[%clk 0:01:34]} 20. Qxd3 {[%clk 0:01:15]}  Nf3+ {[%clk 0:01:33]} 21. Qxf3 {[%clk 0:01:11]}  Bxf3 {[%clk 0:01:32]} 22. Nxf3 {[%clk 0:01:12]}  f6 {[%clk 0:01:32]} 23. Rad1 {[%clk 0:01:08]}  Qe6 {[%clk 0:01:30]} 24. Ne3 {[%clk 0:01:04]}  Rfd8 {[%clk 0:01:30]} 25. Rc1 {[%clk 0:01:02]}  a5 {[%clk 0:01:24]} 26. b3 {[%clk 0:01:01]}  Rc5 {[%clk 0:01:23]} 27. c4 {[%clk 0:01:01]}  Rdc8 {[%clk 0:01:15]} 28. Rcd1 {[%clk 0:00:59]}  b5 {[%clk 0:01:14]} 29. Rd2 {[%clk 0:00:51]}  a4 {[%clk 0:01:12]} 30. Red1 {[%clk 0:00:51]}  h6 {[%clk 0:01:08]} 31. Rd6 {[%clk 0:00:45]}  Qe8 {[%clk 0:01:07]} 32. Nf5 {[%clk 0:00:40]}  bxc4 {[%clk 0:00:59]} 33. bxc4 {[%clk 0:00:37]}  Rxc4 {[%clk 0:00:58]} 34. Rd7 {[%clk 0:00:37]}  Rc1 {[%clk 0:00:55]} 35. Rxg7+ {[%clk 0:00:29]}  Kh8 {[%clk 0:00:54]} 36. Rxc1 {[%clk 0:00:17]}  Rxc1+ {[%clk 0:00:53]} 37. Kh2 {[%clk 0:00:18]}  Rc4 {[%clk 0:00:31]} 38. N3h4 {[%clk 0:00:15]}  Rxh4+ {[%clk 0:00:30]} 39. gxh4 {[%clk 0:00:15]}  Qe6 {[%clk 0:00:27]} 40. g4 {[%clk 0:00:13]}  Qxa2 {[%clk 0:00:27]} 41. Kg3 {[%clk 0:00:13]}  Qb3+ {[%clk 0:00:26]} 42. f3 {[%clk 0:00:13]}  a3 {[%clk 0:00:26]} 43. Rg6 {[%clk 0:00:12]}  a2 {[%clk 0:00:26]} 44. Rxh6+ {[%clk 0:00:11]}  Kg8 {[%clk 0:00:26]} 45. Rg6+ {[%clk 0:00:11]}  Kf7 {[%clk 0:00:24]} 46. Rg7+ {[%clk 0:00:12]}  Ke6 {[%clk 0:00:25]} 47. Re7+ {[%clk 0:00:12]}  Kd5 {[%clk 0:00:25]} 48. Rd7+ {[%clk 0:00:12]}  Kc6 {[%clk 0:00:25]} 49. Rd6+ {[%clk 0:00:12]}  Kc7 {[%clk 0:00:25]} 50. Rxf6 {[%clk 0:00:11]}  a1=Q {[%clk 0:00:25]} 51. h5 {[%clk 0:00:12]}  Qg1+ {[%clk 0:00:25]} 52. Kh4 {[%clk 0:00:12]}  Qxf3 {[%clk 0:00:25]} 53. Rg6 {[%clk 0:00:12]}  Qf4 {[%clk 0:00:23]} 54. h6 {[%clk 0:00:11]}  Qgh2# {[%clk 0:00:24]} 0-1


[Site "https://www.chess.com"]

[Event "Titled Tuesday Blitz July 27 2021"]
[White "Langrock, Hannes"]
[Black "Devaev, Alexander"]
[WhiteFideId "4655290"]
[BlackFideId "4169395"]
[WhiteElo "2353"]
[BlackElo "2185"]
[Result "1-0"]
[Round "11"]
[TimeControl "180+1"]
[Date "2021.07.27"]
[WhiteClock "0:00:10"]
[BlackClock "0:00:06"]

1. d4 {[%clk 0:02:58]}  Nf6 {[%clk 0:03:00]} 2. c4 {[%clk 0:02:58]}  e6 {[%clk 0:03:00]} 3. g3 {[%clk 0:02:58]}  c5 {[%clk 0:02:59]} 4. Nf3 {[%clk 0:02:59]}  cxd4 {[%clk 0:02:59]} 5. Nxd4 {[%clk 0:03:00]}  Nc6 {[%clk 0:02:59]} 6. Bg2 {[%clk 0:02:59]}  a6 {[%clk 0:02:59]} 7. O-O {[%clk 0:02:58]}  Be7 {[%clk 0:02:59]} 8. Nc3 {[%clk 0:02:55]}  Ne5 {[%clk 0:03:00]} 9. b3 {[%clk 0:02:52]}  d6 {[%clk 0:03:00]} 10. Bb2 {[%clk 0:02:48]}  O-O {[%clk 0:03:01]} 11. f4 {[%clk 0:02:42]}  Ng6 {[%clk 0:03:00]} 12. Qd2 {[%clk 0:02:33]}  Qc7 {[%clk 0:02:59]} 13. Kh1 {[%clk 0:02:22]}  Re8 {[%clk 0:03:00]} 14. a4 {[%clk 0:02:13]}  Rb8 {[%clk 0:02:59]} 15. a5 {[%clk 0:02:13]}  Bf8 {[%clk 0:02:58]} 16. e3 {[%clk 0:02:06]}  Nd7 {[%clk 0:02:58]} 17. Na4 {[%clk 0:02:00]}  Nc5 {[%clk 0:02:54]} 18. Qc3 {[%clk 0:01:46]}  Nxa4 {[%clk 0:02:44]} 19. Rxa4 {[%clk 0:01:46]}  Bd7 {[%clk 0:02:45]} 20. Ra2 {[%clk 0:01:44]}  h6 {[%clk 0:02:22]} 21. Be4 {[%clk 0:01:37]}  Ne7 {[%clk 0:02:18]} 22. Kg2 {[%clk 0:01:36]}  Nc6 {[%clk 0:02:17]} 23. h4 {[%clk 0:01:31]}  Nxd4 {[%clk 0:02:14]} 24. Qxd4 {[%clk 0:01:31]}  Bc6 {[%clk 0:02:14]} 25. Kh2 {[%clk 0:01:29]}  f5 {[%clk 0:01:24]} 26. Bxc6 {[%clk 0:01:25]}  Qxc6 {[%clk 0:01:25]} 27. Bc3 {[%clk 0:01:22]}  b5 {[%clk 0:01:22]} 28. axb6 {[%clk 0:01:20]}  Rxb6 {[%clk 0:01:22]} 29. Rb1 {[%clk 0:01:04]}  Reb8 {[%clk 0:01:23]} 30. Rab2 {[%clk 0:00:59]}  d5 {[%clk 0:01:03]} 31. cxd5 {[%clk 0:00:51]}  Qxd5 {[%clk 0:01:03]} 32. Qxd5 {[%clk 0:00:50]}  exd5 {[%clk 0:01:04]} 33. Bd4 {[%clk 0:00:48]}  Rb5 {[%clk 0:01:03]} 34. Kg2 {[%clk 0:00:46]}  Ba3 {[%clk 0:01:01]} 35. Rc2 {[%clk 0:00:39]}  Rxb3 {[%clk 0:01:00]} 36. Rxb3 {[%clk 0:00:39]}  Rxb3 {[%clk 0:01:01]} 37. Rc8+ {[%clk 0:00:31]}  Kf7 {[%clk 0:00:56]} 38. Rc7+ {[%clk 0:00:30]}  Ke6 {[%clk 0:00:50]} 39. Rxg7 {[%clk 0:00:28]}  Bc1 {[%clk 0:00:17]} 40. Rg6+ {[%clk 0:00:24]}  Kf7 {[%clk 0:00:16]} 41. Rf6+ {[%clk 0:00:24]}  Ke7 {[%clk 0:00:16]} 42. Rxf5 {[%clk 0:00:12]}  Ke6 {[%clk 0:00:13]} 43. Re5+ {[%clk 0:00:12]}  Kd6 {[%clk 0:00:12]} 44. Rh5 {[%clk 0:00:08]}  Bxe3 {[%clk 0:00:10]} 45. Rxh6+ {[%clk 0:00:08]}  Kd7 {[%clk 0:00:08]} 46. Bxe3 {[%clk 0:00:08]}  Rxe3 {[%clk 0:00:09]} 47. Rxa6 {[%clk 0:00:08]}  d4 {[%clk 0:00:09]} 48. Kf2 {[%clk 0:00:07]}  Rb3 {[%clk 0:00:09]} 49. h5 {[%clk 0:00:06]}  Rb2+ {[%clk 0:00:07]} 50. Kf3 {[%clk 0:00:06]}  d3 {[%clk 0:00:07]} 51. Ra3 {[%clk 0:00:05]}  Rd2 {[%clk 0:00:07]} 52. h6 {[%clk 0:00:03]}  Ke7 {[%clk 0:00:06]} 53. h7 {[%clk 0:00:03]}  Rh2 {[%clk 0:00:07]} 54. Rxd3 {[%clk 0:00:03]}  Rxh7 {[%clk 0:00:07]} 55. Re3+ {[%clk 0:00:03]}  Kf6 {[%clk 0:00:07]} 56. Re5 {[%clk 0:00:04]}  Rh1 {[%clk 0:00:08]} 57. Rg5 {[%clk 0:00:04]}  Rf1+ {[%clk 0:00:08]} 58. Kg4 {[%clk 0:00:05]}  Ra1 {[%clk 0:00:09]} 59. Rc5 {[%clk 0:00:05]}  Ra6 {[%clk 0:00:09]} 60. Rb5 {[%clk 0:00:06]}  Rd6 {[%clk 0:00:09]} 61. Rf5+ {[%clk 0:00:07]}  Kg6 {[%clk 0:00:09]} 62. Rg5+ {[%clk 0:00:07]}  Kf6 {[%clk 0:00:10]} 63. Rc5 {[%clk 0:00:08]}  Kg6 {[%clk 0:00:09]} 64. Kh4 {[%clk 0:00:09]}  Rd1 {[%clk 0:00:09]} 65. Rg5+ {[%clk 0:00:09]}  Kf6 {[%clk 0:00:09]} 66. Rg8 {[%clk 0:00:09]}  Rh1+ {[%clk 0:00:09]} 67. Kg4 {[%clk 0:00:09]}  Rb1 {[%clk 0:00:10]} 68. Rh8 {[%clk 0:00:09]}  Kg7 {[%clk 0:00:10]} 69. Rh5 {[%clk 0:00:10]}  Kg6 {[%clk 0:00:11]} 70. Rg5+ {[%clk 0:00:10]}  Kf6 {[%clk 0:00:11]} 71. Rc5 {[%clk 0:00:10]}  Rb6 {[%clk 0:00:12]} 72. Ra5 {[%clk 0:00:11]}  Rd6 {[%clk 0:00:12]} 73. Kh5 {[%clk 0:00:11]}  Rd3 {[%clk 0:00:11]} 74. Rg5 {[%clk 0:00:11]}  Rd1 {[%clk 0:00:11]} 75. Rg8 {[%clk 0:00:11]}  Rh1+ {[%clk 0:00:10]} 76. Kg4 {[%clk 0:00:11]}  Ra1 {[%clk 0:00:11]} 77. Rf8+ {[%clk 0:00:12]}  Kg7 {[%clk 0:00:12]} 78. Rf5 {[%clk 0:00:12]}  Kg6 {[%clk 0:00:12]} 79. Re5 {[%clk 0:00:11]}  Kf6 {[%clk 0:00:13]} 80. Rc5 {[%clk 0:00:12]}  Ra4 {[%clk 0:00:12]} 81. Rc6+ {[%clk 0:00:11]}  Kf7 {[%clk 0:00:12]} 82. Kg5 {[%clk 0:00:10]}  Ra3 {[%clk 0:00:12]} 83. g4 {[%clk 0:00:10]}  Ra7 {[%clk 0:00:11]} 84. f5 {[%clk 0:00:11]}  Rd7 {[%clk 0:00:11]} 85. Rf6+ {[%clk 0:00:10]}  Kg7 {[%clk 0:00:11]} 86. Rg6+ {[%clk 0:00:11]}  Kh7 {[%clk 0:00:12]} 87. Ra6 {[%clk 0:00:12]}  Kg7 {[%clk 0:00:12]} 88. Kh5 {[%clk 0:00:12]}  Rd1 {[%clk 0:00:11]} 89. Kg5 {[%clk 0:00:10]}  Rd7 {[%clk 0:00:11]} 90. Rg6+ {[%clk 0:00:10]}  Kf7 {[%clk 0:00:11]} 91. Rh6 {[%clk 0:00:10]}  Kg7 {[%clk 0:00:11]} 92. f6+ {[%clk 0:00:11]}  Kg8 {[%clk 0:00:11]} 93. Kg6 {[%clk 0:00:11]}  Rg7+ {[%clk 0:00:07]} 94. Kf5 {[%clk 0:00:11]}  Ra7 {[%clk 0:00:07]} 95. Rh1 {[%clk 0:00:11]}  Kf7 {[%clk 0:00:06]} 96. Rh7+ {[%clk 0:00:10]}  Kg8 {[%clk 0:00:06]} 97. Rxa7 {[%clk 0:00:10]} 1-0


[Site "https://www.chess.com"]

[Event "Titled Tuesday Blitz July 27 2021"]
[White "Lauridsen, Jesper Morch"]
[Black "Florescu, Codrut-Constantin"]
[WhiteFideId "1401890"]
[BlackFideId "1202200"]
[WhiteElo "2333"]
[BlackElo "2243"]
[Result "1-0"]
[Round "11"]
[TimeControl "180+1"]
[Date "2021.07.27"]
[WhiteClock "0:02:00"]
[BlackClock "0:02:19"]

1. e4 {[%clk 0:03:00]}  c5 {[%clk 0:02:59]} 2. Nf3 {[%clk 0:03:00]}  e6 {[%clk 0:02:59]} 3. d4 {[%clk 0:02:59]}  cxd4 {[%clk 0:02:59]} 4. Nxd4 {[%clk 0:02:59]}  Nc6 {[%clk 0:03:00]} 5. Nc3 {[%clk 0:02:59]}  a6 {[%clk 0:03:00]} 6. g3 {[%clk 0:02:53]}  Qc7 {[%clk 0:02:58]} 7. Bg2 {[%clk 0:02:52]}  Nf6 {[%clk 0:02:59]} 8. O-O {[%clk 0:02:51]}  Nxd4 {[%clk 0:02:59]} 9. Qxd4 {[%clk 0:02:50]}  Bc5 {[%clk 0:02:59]} 10. Bf4 {[%clk 0:02:50]}  d6 {[%clk 0:02:58]} 11. Qd2 {[%clk 0:02:49]}  h6 {[%clk 0:02:58]} 12. Rad1 {[%clk 0:02:46]}  e5 {[%clk 0:02:58]} 13. Be3 {[%clk 0:02:45]}  Be6 {[%clk 0:02:58]} 14. Bxc5 {[%clk 0:02:39]}  dxc5 {[%clk 0:02:57]} 15. Nd5 {[%clk 0:02:38]}  Bxd5 {[%clk 0:02:57]} 16. exd5 {[%clk 0:02:38]}  Qd6 {[%clk 0:02:57]} 17. f4 {[%clk 0:02:34]}  exf4 {[%clk 0:02:47]} 18. Rfe1+ {[%clk 0:02:26]}  Kd7 {[%clk 0:02:40]} 19. Re6 {[%clk 0:02:01]}  Qc7 {[%clk 0:02:23]} 20. Re7+ {[%clk 0:02:01]}  Kxe7 {[%clk 0:02:19]} 21. d6+ {[%clk 0:02:00]} 1-0


[Site "https://www.chess.com"]

[Event "Titled Tuesday Blitz July 27 2021"]
[White "Libiszewski, Fabien"]
[Black "Maltsevskaya, Aleksandra"]
[WhiteFideId "616834"]
[BlackFideId "24174041"]
[WhiteElo "2440"]
[BlackElo "2225"]
[Result "1-0"]
[Round "11"]
[TimeControl "180+1"]
[Date "2021.07.27"]
[WhiteClock "0:00:07"]
[BlackClock "0:00:01"]

1. e4 {[%clk 0:03:00]}  c6 {[%clk 0:02:56]} 2. Nc3 {[%clk 0:02:57]}  d5 {[%clk 0:02:56]} 3. Qf3 {[%clk 0:02:57]}  e6 {[%clk 0:02:51]} 4. d4 {[%clk 0:02:49]}  dxe4 {[%clk 0:02:51]} 5. Qxe4 {[%clk 0:02:47]}  Nf6 {[%clk 0:02:51]} 6. Qh4 {[%clk 0:02:40]}  Be7 {[%clk 0:02:50]} 7. Bg5 {[%clk 0:02:40]}  h6 {[%clk 0:02:47]} 8. Nf3 {[%clk 0:02:34]}  O-O {[%clk 0:02:28]} 9. Bd3 {[%clk 0:02:34]}  Nd5 {[%clk 0:02:16]} 10. Nxd5 {[%clk 0:01:56]}  exd5 {[%clk 0:01:33]} 11. Bxe7 {[%clk 0:01:53]}  Re8 {[%clk 0:01:32]} 12. O-O-O {[%clk 0:01:50]}  Qxe7 {[%clk 0:01:30]} 13. Rhe1 {[%clk 0:01:47]}  Be6 {[%clk 0:01:29]} 14. Qh5 {[%clk 0:01:41]}  Nd7 {[%clk 0:01:17]} 15. Ne5 {[%clk 0:01:37]}  Nf6 {[%clk 0:00:53]} 16. Qf3 {[%clk 0:01:30]}  c5 {[%clk 0:00:51]} 17. dxc5 {[%clk 0:01:27]}  Qxc5 {[%clk 0:00:52]} 18. g4 {[%clk 0:01:23]}  d4 {[%clk 0:00:44]} 19. a3 {[%clk 0:01:16]}  Rac8 {[%clk 0:00:39]} 20. Kb1 {[%clk 0:01:09]}  b5 {[%clk 0:00:19]} 21. Rc1 {[%clk 0:00:19]}  b4 {[%clk 0:00:19]} 22. a4 {[%clk 0:00:19]}  Qa5 {[%clk 0:00:13]} 23. Bb5 {[%clk 0:00:15]}  Bd5 {[%clk 0:00:08]} 24. Qf4 {[%clk 0:00:13]}  Re6 {[%clk 0:00:07]} 25. Qxd4 {[%clk 0:00:13]}  Rd6 {[%clk 0:00:06]} 26. Qf4 {[%clk 0:00:12]}  a6 {[%clk 0:00:06]} 27. Nxf7 {[%clk 0:00:12]}  Kxf7 {[%clk 0:00:04]} 28. Qxd6 {[%clk 0:00:12]}  axb5 {[%clk 0:00:05]} 29. Re7+ {[%clk 0:00:12]}  Kg8 {[%clk 0:00:06]} 30. g5 {[%clk 0:00:12]}  Qxa4 {[%clk 0:00:05]} 31. Rxg7+ {[%clk 0:00:10]}  Kxg7 {[%clk 0:00:04]} 32. gxf6+ {[%clk 0:00:09]}  Kg6 {[%clk 0:00:02]} 33. Rg1+ {[%clk 0:00:08]}  Kf5 {[%clk 0:00:01]} 34. Qxd5+ {[%clk 0:00:08]}  Kxf6 {[%clk 0:00:02]} 35. Qd6+ {[%clk 0:00:07]}  Kf5 {[%clk 0:00:01]} 36. Qd7+ {[%clk 0:00:07]}  Kf4 {[%clk 0:00:01]} 37. Qxc8 {[%clk 0:00:07]} 1-0


[Site "https://www.chess.com"]

[Event "Titled Tuesday Blitz July 27 2021"]
[White "Lohani, Sujana"]
[Black "Golubev, Mikhail"]
[WhiteFideId "12311987"]
[BlackFideId "14100983"]
[WhiteElo "1691"]
[BlackElo "2374"]
[Result "0-1"]
[Round "11"]
[TimeControl "180+1"]
[Date "2021.07.27"]
[WhiteClock "0:00:43"]
[BlackClock "0:00:16"]

1. d4 {[%clk 0:03:00]}  g6 {[%clk 0:02:58]} 2. c4 {[%clk 0:02:59]}  Bg7 {[%clk 0:02:58]} 3. Nc3 {[%clk 0:03:00]}  d6 {[%clk 0:02:58]} 4. e4 {[%clk 0:02:57]}  Nf6 {[%clk 0:02:58]} 5. Be2 {[%clk 0:02:56]}  O-O {[%clk 0:02:58]} 6. Be3 {[%clk 0:02:56]}  Nc6 {[%clk 0:02:54]} 7. d5 {[%clk 0:02:48]}  Ne5 {[%clk 0:02:53]} 8. h3 {[%clk 0:02:44]}  e6 {[%clk 0:02:48]} 9. g4 {[%clk 0:02:43]}  exd5 {[%clk 0:02:45]} 10. exd5 {[%clk 0:02:42]}  Re8 {[%clk 0:02:40]} 11. Qd2 {[%clk 0:02:41]}  c6 {[%clk 0:02:36]} 12. O-O-O {[%clk 0:02:38]}  cxd5 {[%clk 0:02:35]} 13. cxd5 {[%clk 0:02:39]}  Qc7 {[%clk 0:02:21]} 14. Kb1 {[%clk 0:02:38]}  Nc4 {[%clk 0:02:21]} 15. Bxc4 {[%clk 0:02:29]}  Qxc4 {[%clk 0:02:21]} 16. Qd3 {[%clk 0:02:27]}  Qxd3+ {[%clk 0:02:16]} 17. Rxd3 {[%clk 0:02:26]}  h5 {[%clk 0:02:14]} 18. f3 {[%clk 0:02:18]}  b6 {[%clk 0:02:06]} 19. Bd4 {[%clk 0:02:02]}  Re1+ {[%clk 0:01:58]} 20. Kc2 {[%clk 0:02:02]}  Ba6 {[%clk 0:01:40]} 21. Rd1 {[%clk 0:02:01]}  Rae8 {[%clk 0:01:40]} 22. Rxe1 {[%clk 0:01:55]}  Rxe1 {[%clk 0:01:39]} 23. Rh2 {[%clk 0:01:55]}  Nxd5 {[%clk 0:01:24]} 24. Bxg7 {[%clk 0:01:50]}  Kxg7 {[%clk 0:01:11]} 25. Nxd5 {[%clk 0:01:46]}  Rxg1 {[%clk 0:01:11]} 26. gxh5 {[%clk 0:01:40]}  gxh5 {[%clk 0:01:09]} 27. Nf4 {[%clk 0:01:40]}  Bb7 {[%clk 0:00:59]} 28. Nxh5+ {[%clk 0:01:33]}  Kh6 {[%clk 0:00:57]} 29. Nf4 {[%clk 0:01:30]}  Bxf3 {[%clk 0:00:48]} 30. Rd2 {[%clk 0:01:29]}  Be4+ {[%clk 0:00:41]} 31. Kc3 {[%clk 0:01:26]}  Kg5 {[%clk 0:00:32]} 32. Ne2 {[%clk 0:01:12]}  Rg2 {[%clk 0:00:32]} 33. Nd4 {[%clk 0:01:01]}  Rg3+ {[%clk 0:00:29]} 34. Kc4 {[%clk 0:00:55]}  Rxh3 {[%clk 0:00:23]} 35. Nb5 {[%clk 0:00:54]}  d5+ {[%clk 0:00:24]} 36. Kd4 {[%clk 0:00:54]}  a5 {[%clk 0:00:22]} 37. Nc3 {[%clk 0:00:48]}  f5 {[%clk 0:00:20]} 38. Nxd5 {[%clk 0:00:48]}  Bxd5 {[%clk 0:00:18]} 39. Kxd5 {[%clk 0:00:48]}  f4 {[%clk 0:00:18]} 40. Kc6 {[%clk 0:00:47]}  Rh6+ {[%clk 0:00:17]} 41. Kb5 {[%clk 0:00:47]}  Rf6 {[%clk 0:00:17]} 42. b4 {[%clk 0:00:46]}  axb4 {[%clk 0:00:16]} 43. Kxb4 {[%clk 0:00:47]}  f3 {[%clk 0:00:16]} 44. Rf2 {[%clk 0:00:47]}  Kg4 {[%clk 0:00:17]} 45. Kc4 {[%clk 0:00:43]}  Kg3 {[%clk 0:00:16]} 46. Rf1 {[%clk 0:00:44]}  f2 {[%clk 0:00:15]} 47. Kd3 {[%clk 0:00:43]}  Kg2 {[%clk 0:00:15]} 48. Ke2 {[%clk 0:00:43]}  Re6+ {[%clk 0:00:16]} 49. Kd2 {[%clk 0:00:43]}  Kxf1 {[%clk 0:00:16]} 0-1


[Site "https://www.chess.com"]

[Event "Titled Tuesday Blitz July 27 2021"]
[White "Luo, Terry"]
[Black "Krishnakumar, Sriram"]
[WhiteFideId "30931045"]
[BlackFideId "30915856"]
[WhiteElo "2024"]
[BlackElo "2266"]
[Result "1-0"]
[Round "11"]
[TimeControl "180+1"]
[Date "2021.07.27"]
[WhiteClock "0:01:17"]
[BlackClock "0:00:16"]

1. d4 {[%clk 0:03:00]}  d5 {[%clk 0:02:59]} 2. c3 {[%clk 0:02:59]}  Nf6 {[%clk 0:02:58]} 3. Bf4 {[%clk 0:03:00]}  e6 {[%clk 0:02:58]} 4. Nf3 {[%clk 0:02:58]}  Bd6 {[%clk 0:02:58]} 5. e3 {[%clk 0:02:56]}  O-O {[%clk 0:02:56]} 6. Nbd2 {[%clk 0:02:56]}  c5 {[%clk 0:02:56]} 7. Bd3 {[%clk 0:02:57]}  Qc7 {[%clk 0:02:53]} 8. Bxd6 {[%clk 0:02:56]}  Qxd6 {[%clk 0:02:53]} 9. O-O {[%clk 0:02:56]}  b6 {[%clk 0:02:51]} 10. e4 {[%clk 0:02:55]}  dxe4 {[%clk 0:02:30]} 11. Nxe4 {[%clk 0:02:54]}  Nxe4 {[%clk 0:02:21]} 12. Bxe4 {[%clk 0:02:54]}  Nc6 {[%clk 0:02:22]} 13. dxc5 {[%clk 0:02:28]}  Qxc5 {[%clk 0:02:12]} 14. b4 {[%clk 0:02:27]}  Qxc3 {[%clk 0:01:23]} 15. Rc1 {[%clk 0:02:24]}  Qxb4 {[%clk 0:01:23]} 16. Bxc6 {[%clk 0:02:23]}  Rb8 {[%clk 0:01:24]} 17. Ne5 {[%clk 0:02:16]}  Ba6 {[%clk 0:01:18]} 18. Re1 {[%clk 0:02:05]}  Rbd8 {[%clk 0:01:12]} 19. Qb3 {[%clk 0:02:05]}  Qxb3 {[%clk 0:00:40]} 20. axb3 {[%clk 0:02:05]}  f5 {[%clk 0:00:40]} 21. f4 {[%clk 0:02:02]}  Rd4 {[%clk 0:00:38]} 22. g3 {[%clk 0:01:57]}  Bc8 {[%clk 0:00:31]} 23. Rcd1 {[%clk 0:01:55]}  Rb4 {[%clk 0:00:29]} 24. Re3 {[%clk 0:01:50]}  a5 {[%clk 0:00:26]} 25. Rc3 {[%clk 0:01:25]}  Ba6 {[%clk 0:00:18]} 26. Bd7 {[%clk 0:01:21]}  Rf6 {[%clk 0:00:16]} 27. Bxe6+ {[%clk 0:01:17]}  Rxe6 {[%clk 0:00:16]} 28. Rd8+ {[%clk 0:01:17]} 1-0


[Site "https://www.chess.com"]